bitfinex-derivatives/quotes_BTCF0:USTF0_20251202
["timestamp","ask_amount","ask_price","bid_price","bid_amount"]
[1764698454646,0.0513608,91556.0,91555.0,0.09552]
[1764698454647,0.0523608,91556.0,91555.0,0.09552]
[1764698454861,0.0951508,91556.0,91555.0,0.09552]
[1764698455953,0.0951508,91556.0,91555.0,0.08652]
[1764698456354,0.08423,91556.0,91555.0,0.08652]
[1764698456656,0.08523,91556.0,91555.0,0.08652]
[1764698456864,0.08623,91556.0,91555.0,0.08452]
[1764698457456,0.08423,91556.0,91555.0,0.08452]
[1764698457658,0.14400446,91556.0,91555.0,0.08452]
[1764698457855,0.0129208,91556.0,91555.0,0.0954409]
[1764698458257,0.0533608,91556.0,91555.0,0.0954409]
[1764698459258,0.04244,91556.0,91555.0,0.0954409]
[1764698459658,0.0129208,91556.0,91555.0,0.0954409]
[1764698459965,0.001,91556.0,91555.0,0.0954409]
[1764698460370,0.002,91556.0,91555.0,0.0954409]
[1764698460866,0.04071303,91566.0,91565.0,0.0954397]
[1764698461261,0.08350303,91566.0,91565.0,0.08452]
[1764698461453,0.00027303,91566.0,91565.0,0.08452]
[1764698462775,0.00127303,91566.0,91565.0,0.08452]
[1764698464364,0.00227303,91566.0,91565.0,0.08452]
[1764698466572,0.08134303,91566.0,91565.0,0.08452]
[1764698468277,0.08134303,91566.0,91553.0,0.0001639]
[1764698468278,0.03989,91558.0,91557.0,0.07847]
[1764698468475,0.07907,91558.0,91557.0,0.0893907]
[1764698468670,0.07907,91558.0,91557.0,0.07847]
[1764698469070,0.07907,91554.0,91553.0,0.0786339]
[1764698469265,0.089991,91554.0,91553.0,0.0786339]
[1764698469771,0.05904749,91566.0,91565.0,0.07847]
[1764698469772,0.00027303,91566.0,91565.0,0.07847]
[1764698469975,0.0001639,91572.0,91571.0,0.089389]
[1764698470179,3.9e-06,91572.0,91571.0,0.089389]
[1764698471571,0.0790739,91572.0,91571.0,0.089389]
[1764698471772,0.0899928,91572.0,91571.0,0.07847]
[1764698471965,0.0790739,91572.0,91571.0,0.07847]
[1764698472569,0.0800739,91572.0,91571.0,0.07847]
[1764698472979,0.1150796,91566.0,91565.0,0.0893897]
[1764698473375,0.10416,91566.0,91565.0,0.0893897]
[1764698473580,3.9e-06,91572.0,91571.0,0.010919]
[1764698473780,0.0800739,91572.0,91571.0,0.089389]
[1764698474483,0.0800739,91572.0,91571.0,0.07847]
[1764698474982,0.10416,91566.0,91565.0,0.03936]
[1764698475179,0.089991,91554.0,91553.0,0.0001639]
[1764698476380,0.08007,91554.0,91553.0,0.0876339]
[1764698476581,0.001,91554.0,91553.0,0.0876339]
[1764698476970,0.07907,91571.0,91570.0,0.0502791]
[1764698477178,0.42,91571.0,91498.0,0.85965153]
[1764698477375,0.42,91571.0,91340.0,8.20765159]
[1764698477376,0.40661462,91508.0,91410.0,0.02545]
[1764698477593,0.20330731,91460.0,91427.0,1.70919861]
[1764698477772,0.1094,91487.0,91441.0,1.21298767]
[1764698477978,0.0109304,91476.0,91475.0,0.07847]
[1764698478173,0.0109304,91476.0,91470.0,0.02545]
[1764698478174,0.08912368,91485.0,91482.0,0.03936]
[1764698478485,0.03621683,91484.0,91483.0,0.07847]
[1764698478872,0.03621683,91484.0,91483.0,3.00065628]
[1764698479086,0.11443504,91484.0,91483.0,3.00065628]
[1764698479292,0.03621683,91484.0,91483.0,3.00065628]
[1764698479686,0.03721683,91484.0,91483.0,3.00065628]
[1764698479877,0.03821683,91484.0,91483.0,3.00065628]
[1764698480079,0.03821683,91484.0,91483.0,3.51545628]
[1764698480592,0.03721683,91484.0,91483.0,3.51545628]
[1764698480778,8.2e-07,91485.0,91483.0,3.51545628]
[1764698481083,0.09762114,91530.0,91483.0,3.51545628]
[1764698481084,0.0109266,91508.0,91502.0,0.07847]
[1764698481289,0.20330731,91520.0,91502.0,0.07847]
[1764698481290,0.0109271,91503.0,91502.0,0.07847]
[1764698481886,0.0109267,91507.0,91502.0,1.29145767]
[1764698482192,0.0109267,91507.0,91504.0,0.02545]
[1764698482984,0.0119267,91507.0,91504.0,0.02545]
[1764698483188,0.001,91507.0,91506.0,1.29145767]
[1764698483383,0.0109231,91537.0,91524.0,0.07847]
[1764698483590,0.0109231,91537.0,91531.0,0.03936]
[1764698483786,0.0109231,91537.0,91532.0,0.5148]
[1764698483983,0.01703,91566.0,91532.0,0.5148]
[1764698484188,0.20330731,91570.0,91532.0,0.5148]
[1764698484384,0.0109224,91543.0,91542.0,0.03936]
[1764698484688,0.0109222,91545.0,91544.0,0.03936]
[1764698485087,0.0109222,91545.0,91544.0,1.25234767]
[1764698486193,0.0129222,91545.0,91544.0,1.25234767]
[1764698486495,0.003,91545.0,91544.0,1.25234767]
[1764698487287,0.003,91545.0,91544.0,2.70968291]
[1764698487489,0.003,91545.0,91544.0,2.65067784]
[1764698488377,0.002,91545.0,91544.0,2.65067784]
[1764698488582,0.00011227,91560.0,91559.0,0.03936]
[1764698488880,0.00011227,91560.0,91559.0,1.7210709]
[1764698489086,0.03929227,91560.0,91559.0,1.6819609]
[1764698489388,0.03929227,91560.0,91559.0,1.7081426]
[1764698490496,0.0109224,91543.0,91542.0,0.0001639]
[1764698490677,0.02106,91552.0,91535.0,0.00352]
[1764698490880,0.0109231,91537.0,91536.0,0.08199]
[1764698491087,0.0109211,91554.0,91548.0,0.07847]
[1764698491293,0.0109211,91554.0,91553.0,0.03936]
[1764698491689,0.0109211,91554.0,91553.0,1.2327026]
[1764698492278,0.0109211,91554.0,91553.0,1.2337026]
[1764698492484,0.0109211,91554.0,91553.0,1.2417026]
[1764698492485,0.0119211,91554.0,91553.0,1.2417026]
[1764698492994,0.05008124,91554.0,91553.0,1.2407026]
[1764698493196,0.05008124,91554.0,91553.0,1.2427026]
[1764698493395,0.03916014,91554.0,91553.0,1.2427026]
[1764698493590,0.13645483,91554.0,91553.0,1.2427026]
[1764698494189,0.03916014,91554.0,91553.0,1.2427026]
[1764698494383,0.03916014,91554.0,91553.0,1.2447026]
[1764698496692,0.03916014,91554.0,91553.0,2.58404375]
[1764698498802,0.03916014,91554.0,91553.0,2.49555165]
[1764698500505,0.19524229,91578.0,91577.0,0.26079]
[1764698500799,0.19524229,91578.0,91577.0,1.65384341]
[1764698501101,0.19524229,91584.0,91578.0,0.52738]
[1764698501796,0.00011193,91588.0,91578.0,0.52738]
[1764698502196,0.0119181,91579.0,91578.0,0.53538]
[1764698502595,0.0119181,91579.0,91578.0,0.36042023]
[1764698503492,0.2713781,91579.0,91578.0,0.35942023]
[1764698504495,0.00011193,91588.0,91578.0,0.87346023]
[1764698504693,0.00011193,91588.0,91587.0,1.55359641]
[1764698504902,0.00011193,91588.0,91587.0,2.06771641]
[1764698505506,0.51765193,91588.0,91587.0,1.54037641]
[1764698505693,0.51765193,91588.0,91587.0,2.82186467]
[1764698505694,0.00011193,91588.0,91587.0,2.82186467]
[1764698506997,0.00011193,91588.0,91587.0,2.82194467]
[1764698507195,0.00011193,91588.0,91587.0,2.82694467]
[1764698507695,0.00011193,91588.0,91587.0,2.82894467]
[1764698507897,0.66525193,91588.0,91587.0,2.31470467]
[1764698508097,0.66525193,91588.0,91587.0,2.82882467]
[1764698508297,0.66525193,91588.0,91587.0,1.54733641]
[1764698508700,0.66525193,91588.0,91587.0,1.34089542]
[1764698509716,0.66525193,91588.0,91587.0,0.82677542]
[1764698509896,0.66525193,91588.0,91587.0,0.52108]
[1764698510102,0.66525193,91588.0,91587.0,0.51908]
[1764698510403,0.66525193,91588.0,91587.0,0.31262429]
[1764698510606,0.86049422,91588.0,91587.0,0.16515592]
[1764698510902,0.0109191,91570.0,91565.0,0.0109197]
[1764698511107,0.0109191,91570.0,91569.0,0.8109838]
[1764698511406,0.13651686,91576.0,91575.0,0.52738]
[1764698511809,0.0109184,91576.0,91572.0,0.1146389]
[1764698512106,0.0109184,91576.0,91575.0,1.80886826]
[1764698512302,0.00011193,91588.0,91578.0,0.52738]
[1764698512303,0.13651686,91587.0,91578.0,0.52738]
[1764698512498,0.26046,91584.0,91583.0,0.81977542]
[1764698512695,0.54477262,91584.0,91583.0,1.08056542]
[1764698513000,0.68128948,91584.0,91583.0,1.33369542]
[1764698513197,0.68128948,91584.0,91583.0,0.81977542]
[1764698513393,0.68128948,91584.0,91583.0,1.33365542]
[1764698513394,0.54477262,91584.0,91583.0,1.33365542]
[1764698513813,0.54477262,91584.0,91583.0,0.81977542]
[1764698514005,0.54477262,91584.0,91583.0,1.33465542]
[1764698514415,0.54477262,91584.0,91583.0,1.33665542]
[1764698514708,0.54477262,91584.0,91583.0,1.21868572]
[1764698515299,0.6230127,91584.0,91583.0,1.21868572]
[1764698515495,0.3659327,91584.0,91583.0,1.21868572]
[1764698516001,0.1054727,91584.0,91583.0,1.21868572]
[1764698516208,0.02723262,91584.0,91583.0,1.21868572]
[1764698516601,0.02723262,91584.0,91583.0,1.23218572]
[1764698516908,0.02723262,91584.0,91583.0,3.02731398]
[1764698520110,2.62e-06,91584.0,91583.0,3.02731398]
[1764698520310,0.08944125,91606.0,91605.0,0.52738]
[1764698520614,0.01118781,91606.0,91605.0,1.74266572]
[1764698520914,0.01118781,91606.0,91605.0,2.96546541]
[1764698521309,0.52872781,91606.0,91605.0,2.96546541]
[1764698521609,0.52872781,91606.0,91605.0,0.70180572]
[1764698521812,0.5284559,91597.0,91596.0,0.0001638]
[1764698522013,0.5284559,91597.0,91596.0,0.4654438]
[1764698522210,0.5284559,91597.0,91596.0,1.42803952]
[1764698522407,0.0109159,91597.0,91596.0,1.22934952]
[1764698522609,0.2713759,91597.0,91596.0,1.74278952]
[1764698522802,0.2713759,91597.0,91596.0,1.22934952]
[1764698523113,0.5284559,91597.0,91596.0,0.70196952]
[1764698523616,0.5284559,91597.0,91542.0,0.0109224]
[1764698523617,0.6521805,91559.0,91558.0,8.521e-05]
[1764698523805,0.6521805,91559.0,91558.0,0.62497521]
[1764698524013,0.0109201,91562.0,91561.0,0.62489]
[1764698524615,0.0109197,91566.0,91562.0,0.01092]
[1764698524814,0.0109197,91566.0,91558.0,1.2228849]
[1764698524815,0.6521805,91559.0,91558.0,1.2228849]
[1764698525009,0.8079705,91559.0,91558.0,8.521e-05]
[1764698525414,0.6521812,91553.0,91552.0,0.0001638]
[1764698525809,0.09785095,91557.0,91556.0,0.62489]
[1764698526011,0.09785095,91561.0,91560.0,0.6358103]
[1764698526210,0.07833717,91565.0,91564.0,0.62489]
[1764698526408,8.8e-05,91565.0,91564.0,0.62489]
[1764698526606,8.8e-05,91565.0,91564.0,1.84768969]
[1764698528617,0.004088,91565.0,91564.0,1.84768969]
[1764698530618,0.645348,91565.0,91564.0,1.22279969]
[1764698531120,0.645348,91565.0,91564.0,1.73639969]
[1764698531425,0.3322712,91553.0,91552.0,0.6250538]
[1764698531731,0.32135,91553.0,91552.0,1.1388138]
[1764698531922,0.07838625,91562.0,91561.0,0.62489]
[1764698532123,0.0109201,91562.0,91561.0,0.62489]
[1764698532335,0.02532831,91562.0,91561.0,1.13857]
[1764698532630,0.02532831,91562.0,91561.0,2.36136969]
[1764698532941,0.13692014,91592.0,91562.0,1.01698238]
[1764698533134,0.0109164,91593.0,91592.0,0.62489]
[1764698533329,0.010916,91596.0,91595.0,0.62489]
[1764698534043,0.332266,91596.0,91595.0,0.62489]
[1764698534928,0.6521764,91593.0,91592.0,1.02198238]
[1764698535532,0.6521764,91593.0,91592.0,1.01698238]
[1764698536142,0.6521764,91593.0,91592.0,1.02298238]
[1764698536344,0.3322664,91593.0,91592.0,1.02498238]
[1764698536542,0.0109164,91593.0,91592.0,1.02498238]
[1764698536732,0.00027291,91606.0,91597.0,0.62489]
[1764698536932,0.32162291,91606.0,91605.0,0.62489]
[1764698537135,0.64153291,91606.0,91594.0,0.02110814]
[1764698537441,0.64153291,91606.0,91600.0,0.29999]
[1764698537442,0.0109155,91601.0,91600.0,0.29999]
[1764698537629,0.0109155,91601.0,91600.0,0.62489]
[1764698537947,0.0109155,91601.0,91594.0,0.01019194]
[1764698537948,0.8079658,91598.0,91597.0,0.004]
[1764698538247,0.8079658,91598.0,91597.0,0.005]
[1764698538636,0.8079658,91598.0,91597.0,0.001]
[1764698538841,0.6521765,91592.0,91591.0,0.512]
[1764698540236,0.6521765,91592.0,91591.0,0.81199]
[1764698540745,0.6521765,91592.0,91591.0,2.15387238]
[1764698540943,0.0109165,91592.0,91591.0,2.15387238]
[1764698541243,0.0109165,91592.0,91591.0,1.13689]
[1764698541633,0.0109165,91592.0,91591.0,1.14289]
[1764698541838,0.0109165,91592.0,91591.0,1.14489]
[1764698542241,0.3322665,91592.0,91591.0,1.14489]
[1764698542546,0.32135,91598.0,91597.0,0.62489]
[1764698542748,0.0109153,91602.0,91601.0,0.62489]
[1764698542940,0.00027291,91606.0,91591.0,1.54789898]
[1764698543140,0.0109155,91601.0,91600.0,0.62489]
[1764698543337,0.0109151,91604.0,91600.0,0.62489]
[1764698543540,0.00027291,91606.0,91605.0,0.62489]
[1764698544548,0.64153291,91606.0,91605.0,0.62489]
[1764698544739,0.64153291,91606.0,91605.0,0.62889]
[1764698544939,0.00027291,91606.0,91605.0,0.62889]
[1764698545951,0.00027291,91606.0,91605.0,0.62989]
[1764698547753,0.00027291,91606.0,91605.0,0.63189]
[1764698549957,0.05865461,91624.0,91622.0,0.62489]
[1764698550146,0.0109121,91629.0,91628.0,0.635802]
[1764698551245,0.0109105,91643.0,91628.0,0.635802]
[1764698551246,0.15579,91644.0,91632.0,0.62489]
[1764698551448,0.8079603,91644.0,91643.0,0.62489]
[1764698551645,0.01118289,91646.0,91645.0,0.62489]
[1764698552642,0.33253289,91646.0,91645.0,0.62489]
[1764698553949,0.67276289,91646.0,91645.0,0.001]
[1764698554142,0.67276289,91646.0,91645.0,0.004]
[1764698554452,0.67276289,91646.0,91645.0,0.51716]
[1764698554951,0.00027279,91646.0,91645.0,1.16438]
[1764698555345,0.00018749,91646.0,91645.0,1.16438]
[1764698556145,0.67742749,91646.0,91645.0,0.004]
[1764698556348,0.67742749,91646.0,91645.0,1.1643]
[1764698556558,0.67742749,91646.0,91645.0,0.004]
[1764698556854,0.67742749,91646.0,91645.0,0.96196859]
[1764698558855,0.67742749,91646.0,91645.0,0.004]
[1764698559245,0.6881514,91635.0,91634.0,0.0001637]
[1764698559448,0.6881514,91635.0,91634.0,0.06650978]
[1764698559754,0.20131,91632.0,91621.0,0.16196]
[1764698560058,0.20131,91632.0,91621.0,0.80934]
[1764698560059,0.0109129,91622.0,91621.0,0.80934]
[1764698560353,0.6881529,91622.0,91621.0,0.80934]
[1764698560545,0.67724,91622.0,91621.0,0.8202531]
[1764698561360,0.67724,91622.0,91621.0,0.80934]
[1764698562547,0.67724,91622.0,91621.0,0.87584978]
[1764698562748,0.67824,91622.0,91621.0,0.87584978]
[1764698563657,0.001,91622.0,91621.0,0.87584978]
[1764698564143,0.002,91622.0,91621.0,0.87584978]
[1764698564756,0.001,91622.0,91621.0,0.87584978]
[1764698564958,0.002,91622.0,91621.0,0.87584978]
[1764698568059,0.67924,91622.0,91621.0,0.71388978]
[1764698570267,0.33792,91622.0,91621.0,0.71388978]
[1764698571164,0.33792,91622.0,91621.0,0.64738]
[1764698571555,0.002,91622.0,91621.0,0.71388978]
[1764698572650,0.010912,91630.0,91629.0,0.0109121]
[1764698572850,0.010912,91630.0,91629.0,0.6582921]
[1764698573570,0.010912,91630.0,91629.0,0.64738]
[1764698573865,0.6881516,91637.0,91636.0,0.0109112]
[1764698574072,0.05863441,91640.0,91639.0,0.6582909]
[1764698574358,0.01107378,91644.0,91643.0,0.64738]
[1764698574760,0.00016338,91644.0,91643.0,0.71388978]
[1764698575060,0.00018749,91646.0,91645.0,0.64738]
[1764698575652,0.05863441,91655.0,91650.0,0.6582896]
[1764698576054,0.05863441,91656.0,91650.0,0.72479938]
[1764698576661,0.05808658,91658.0,91657.0,0.64738]
[1764698576861,0.3608,91663.0,91662.0,0.6582882]
[1764698578156,0.3608,91663.0,91662.0,0.6676144]
[1764698578459,0.3608,91663.0,91662.0,0.6706144]
[1764698578862,0.3608,91663.0,91662.0,0.6622882]
[1764698579554,0.29429022,91663.0,91662.0,0.6622882]
[1764698579755,0.33619267,91686.0,91685.0,0.64738]
[1764698580166,0.67751267,91686.0,91685.0,0.64738]
[1764698580665,0.67751267,91686.0,91685.0,0.31956]
[1764698580862,0.6881464,91677.0,91676.0,0.0001636]
[1764698581861,0.6881464,91677.0,91676.0,0.0031636]
[1764698583867,0.6881464,91677.0,91676.0,0.0051636]
[1764698584664,0.33609,91684.0,91683.0,0.68924]
[1764698584874,0.00027267,91686.0,91685.0,0.68924]
[1764698585671,0.69185267,91686.0,91685.0,0.35802]
[1764698585970,0.00027267,91686.0,91685.0,0.68924]
[1764698586370,0.20131,91707.0,91706.0,0.68924]
[1764698586672,0.0109039,91699.0,91698.0,0.35802]
[1764698586872,0.69158,91698.0,91697.0,0.0001636]
[1764698588175,0.69158,91698.0,91697.0,0.0031636]
[1764698588573,0.69158,91698.0,91658.0,0.35812568]
[1764698588574,0.69158,91659.0,91658.0,0.35812568]
[1764698588775,0.69158,91659.0,91658.0,0.68934568]
[1764698588975,0.0109081,91663.0,91662.0,0.68924]
[1764698589565,0.010908,91664.0,91663.0,0.68924]
[1764698590068,0.702488,91664.0,91663.0,0.68924]
[1764698590270,0.69158,91664.0,91663.0,0.68924]
[1764698590662,0.69358,91664.0,91663.0,0.68924]
[1764698591083,0.7024885,91659.0,91658.0,0.35812568]
[1764698591265,0.7024885,91659.0,91658.0,0.00010568]
[1764698593181,0.7044885,91659.0,91658.0,0.00010568]
[1764698594268,0.7024885,91659.0,91658.0,0.00010568]
[1764698594466,0.69358,91659.0,91658.0,0.01101438]
[1764698594686,0.002,91659.0,91658.0,0.70025438]
[1764698594983,0.69358,91659.0,91658.0,0.68934568]
[1764698595584,0.69358,91659.0,91658.0,0.69134568]
[1764698595874,0.69158,91659.0,91658.0,0.00210568]
[1764698596079,0.69158,91659.0,91658.0,0.00510568]
[1764698596579,0.69658,91659.0,91658.0,0.00210568]
[1764698596781,0.69658,91659.0,91658.0,0.00010568]
[1764698597281,0.7024891,91654.0,91653.0,0.0001636]
[1764698597877,0.0109093,91653.0,91637.0,0.3689311]
[1764698598073,0.33609,91638.0,91637.0,0.35802]
[1764698598381,0.33618329,91638.0,91637.0,0.35802]
[1764698598578,0.69167329,91638.0,91637.0,0.35802]
[1764698598777,0.0109115,91635.0,91632.0,0.0109116]
[1764698598982,0.0109114,91635.0,91632.0,0.0109118]
[1764698599177,0.3470014,91635.0,91634.0,0.35802]
[1764698599776,0.34009,91635.0,91634.0,0.68924]
[1764698600076,0.004,91635.0,91634.0,0.68924]
[1764698600279,0.33618329,91638.0,91637.0,0.68924]
[1764698600483,0.69167329,91638.0,91637.0,0.35802]
[1764698600879,9.329e-05,91638.0,91637.0,0.68924]
[1764698602085,0.00016369,91643.0,91642.0,0.7001506]
[1764698603669,0.00516369,91643.0,91642.0,0.7001506]
[1764698603980,0.05851643,91667.0,91665.0,0.7001478]
[1764698604185,0.33609,91666.0,91665.0,0.7001478]
[1764698604685,0.05851643,91675.0,91674.0,0.7001468]
[1764698604882,0.05851643,91676.0,91675.0,0.68924]
[1764698605178,0.00016348,91684.0,91681.0,0.0109059]
[1764698605378,0.33609,91682.0,91681.0,0.3689259]
[1764698605581,0.69158,91682.0,91681.0,0.3689259]
[1764698606680,0.69158,91682.0,91681.0,0.3719259]
[1764698607284,0.69158,91682.0,91681.0,0.3729259]
[1764698607682,0.00016348,91684.0,91683.0,0.68924]
[1764698608183,0.69174348,91684.0,91683.0,0.68924]
[1764698608687,0.69174348,91684.0,91683.0,0.69124]
[1764698608888,0.69174348,91684.0,91683.0,0.69524]
[1764698610188,0.00016348,91684.0,91683.0,0.69524]
[1764698610571,0.20881,91704.0,91703.0,0.7001433]
[1764698610572,0.90039,91704.0,91703.0,0.7001433]
[1764698610997,0.90039,91704.0,91694.0,0.2029646]
[1764698610998,0.0109026,91709.0,91708.0,0.68924]
[1764698611191,0.69158,91706.0,91705.0,0.0109031]
[1764698611685,0.69158,91706.0,91705.0,0.3689231]
[1764698611879,0.69158,91706.0,91705.0,0.7001431]
[1764698612482,0.69158,91706.0,91705.0,0.7041431]
[1764698612994,0.20881,91716.0,91705.0,0.7041431]
[1764698612995,0.68141,91713.0,91712.0,0.7017622]
[1764698613181,0.68141,91713.0,91712.0,0.69086]
[1764698613991,0.3254,91713.0,91712.0,0.69086]
[1764698614186,0.68141,91724.0,91723.0,0.0109008]
[1764698614389,0.6923109,91723.0,91722.0,0.0109009]
[1764698614576,0.68141,91723.0,91722.0,0.3559809]
[1764698614888,0.3254,91715.0,91714.0,0.54820819]
[1764698615083,0.3254,91715.0,91714.0,0.70192559]
[1764698615590,0.68141,91715.0,91714.0,0.00016359]
[1764698615984,0.68141,91715.0,91714.0,0.00316359]
[1764698616686,0.68141,91715.0,91714.0,0.00416359]
[1764698617290,0.68141,91715.0,91714.0,0.70592559]
[1764698617479,0.68141,91723.0,91722.0,0.355981]
[1764698617882,0.68141,91723.0,91722.0,0.34508]
[1764698618082,0.68141,91720.0,91719.0,0.0109014]
[1764698618282,0.68141,91720.0,91719.0,0.3559814]
[1764698618783,0.00027255,91726.0,91714.0,0.00116359]
[1764698618784,0.32567255,91726.0,91725.0,0.7017607]
[1764698618980,0.00027255,91726.0,91725.0,0.7017607]
[1764698619186,0.68168255,91726.0,91725.0,0.7017607]
[1764698619989,0.00027255,91726.0,91725.0,0.7017607]
[1764698620393,0.91135,91740.0,91739.0,0.35609]
[1764698620595,0.70675,91732.0,91731.0,0.35609]
[1764698620798,0.2046,91740.0,91727.0,0.0109003]
[1764698620799,0.91135,91728.0,91727.0,0.0109003]
[1764698621091,0.70675,91726.0,91725.0,0.002]
[1764698621793,0.70675,91726.0,91725.0,0.35809]
[1764698621989,0.70675,91726.0,91725.0,0.002]
[1764698622390,0.70675,91715.0,91714.0,0.35625359]
[1764698622697,0.70675,91715.0,91714.0,0.70906359]
[1764698623199,0.2046,91716.0,91715.0,0.7198019]
[1764698623200,0.91135,91716.0,91715.0,0.7198019]
[1764698623390,0.91135,91716.0,91715.0,0.7089]
[1764698623391,0.9222518,91716.0,91715.0,0.7089]
[1764698623896,0.0109019,91715.0,91714.0,0.00016359]
[1764698624198,0.7176519,91715.0,91714.0,0.00016359]
[1764698625298,0.70675,91715.0,91714.0,0.01106559]
[1764698626195,0.70775,91715.0,91714.0,0.00016359]
[1764698626599,0.35155,91715.0,91714.0,0.71996559]
[1764698626787,0.001,91715.0,91714.0,0.71996559]
[1764698627297,0.70775,91715.0,91714.0,0.70906359]
[1764698627491,0.70775,91715.0,91714.0,0.00016359]
[1764698628296,0.001,91715.0,91714.0,0.70906359]
[1764698629290,0.1198,91739.0,91738.0,0.7197991]
[1764698629689,0.47035,91739.0,91738.0,0.7197991]
[1764698630600,0.35055,91739.0,91738.0,0.7197991]
[1764698630900,0.2046,91740.0,91739.0,0.7089]
[1764698631402,0.91135,91740.0,91739.0,0.7089]
[1764698632000,0.70675,91747.0,91746.0,0.35609]
[1764698632191,0.70675,91747.0,91746.0,0.7197982]
[1764698633105,0.70675,91747.0,91746.0,0.3669882]
[1764698633289,0.70675,91744.0,91737.0,0.20312809]
[1764698633597,0.35055,91739.0,91738.0,0.7089]
[1764698633798,0.35055,91739.0,91738.0,0.7197991]
[1764698634097,0.70679,91750.0,91749.0,0.0108978]
[1764698634303,0.70679,91750.0,91749.0,0.3669878]
[1764698634605,0.70679,91750.0,91749.0,0.7197978]
[1764698634898,0.70679,91750.0,91749.0,0.3669878]
[1764698635098,0.70675,91747.0,91746.0,0.0108981]
[1764698635300,0.70675,91747.0,91746.0,0.7197981]
[1764698635697,4e-05,91750.0,91749.0,0.7197978]
[1764698635899,0.35059,91750.0,91749.0,0.7217978]
[1764698636302,4e-05,91750.0,91749.0,0.7217978]
[1764698636693,0.9222463,91762.0,91761.0,0.0108964]
[1764698637403,0.05851643,91785.0,91784.0,0.7089]
[1764698637596,0.0108914,91804.0,91775.0,0.36714819]
[1764698637597,0.70675,91776.0,91775.0,0.36714819]
[1764698637792,0.70675,91776.0,91775.0,0.00016349]
[1764698638598,0.86536,91762.0,91761.0,0.002]
[1764698638804,0.7176471,91756.0,91755.0,0.35609]
[1764698639106,0.70675,91756.0,91755.0,0.35609]
[1764698639310,0.717647,91756.0,91755.0,0.35609]
[1764698639510,0.70675,91756.0,91755.0,0.3669871]
[1764698640003,0.70675,91756.0,91755.0,0.35609]
[1764698640207,0.70675,91747.0,91746.0,0.70906349]
[1764698640506,0.70675,91747.0,91746.0,0.71855245]
[1764698640804,0.70675,91747.0,91746.0,0.70906349]
[1764698641206,0.3614474,91754.0,91753.0,0.35609]
[1764698641399,0.7176474,91754.0,91753.0,0.7197974]
[1764698642106,0.0108974,91754.0,91753.0,0.7197974]
[1764698642305,0.7176481,91747.0,91746.0,0.00016349]
[1764698642604,0.70675,91747.0,91746.0,0.00016349]
[1764698642999,0.70675,91747.0,91746.0,0.35625349]
[1764698643205,0.70675,91747.0,91746.0,0.69528349]
[1764698643799,0.82655,91747.0,91746.0,0.69528349]
[1764698644907,0.70675,91747.0,91746.0,0.00016349]
[1764698645408,0.695729,91739.0,91731.0,0.0108999]
[1764698646214,0.695729,91739.0,91720.0,0.2029646]
[1764698646404,0.695729,91739.0,91729.0,0.00016349]
[1764698646600,0.0109001,91730.0,91729.0,0.00016349]
[1764698646801,0.6957301,91730.0,91729.0,0.00016349]
[1764698647207,0.32518,91730.0,91729.0,0.67773349]
[1764698647414,0.68483,91730.0,91729.0,0.34960369]
[1764698647608,0.68483,91730.0,91729.0,0.33870349]
[1764698647802,0.68495463,91730.0,91729.0,0.00016349]
[1764698650718,0.32518,91707.0,91706.0,1.0534729]
[1764698651102,0.32518,91707.0,91706.0,1.06320688]
[1764698651718,0.32518,91707.0,91706.0,0.69820688]
[1764698651920,0.68483,91707.0,91706.0,0.69820688]
[1764698652106,0.68496759,91707.0,91706.0,0.69820688]
[1764698652418,0.68496759,91707.0,91706.0,0.6884729]
[1764698652716,0.00013759,91707.0,91706.0,0.69818666]
[1764698653017,0.88816759,91707.0,91706.0,0.02061666]
[1764698653408,0.68496759,91707.0,91706.0,0.69818666]
[1764698654119,0.00013759,91707.0,91706.0,0.69818666]
[1764698658517,0.32531759,91707.0,91706.0,0.69818666]
[1764698658716,0.68496759,91707.0,91706.0,0.34825376]
[1764698659216,0.68496759,91707.0,91706.0,0.68728376]
[1764698660823,0.00013759,91707.0,91706.0,0.68728376]
[1764698663421,0.68496759,91707.0,91706.0,0.68728376]
[1764698663626,0.00013759,91707.0,91706.0,0.69818666]
[1764698664726,0.69587039,91707.0,91706.0,0.69818666]
[1764698665317,0.69587039,91707.0,91706.0,0.67757]
[1764698665522,0.69587039,91707.0,91706.0,0.33854]
[1764698666026,0.68496759,91707.0,91706.0,0.6884729]
[1764698668023,0.00013759,91707.0,91706.0,0.6884729]
[1764698668330,0.13084039,91707.0,91706.0,0.6884729]
[1764698668535,0.11993759,91707.0,91706.0,0.6884729]
[1764698668926,0.80476759,91707.0,91706.0,0.6884729]
[1764698672026,0.1932139,91701.0,91700.0,0.0109033]
[1764698672330,0.6957339,91698.0,91697.0,0.01106739]
[1764698672831,0.1932139,91701.0,91691.0,0.51084]
[1764698672832,0.8352146,91692.0,91691.0,0.51084]
[1764698673027,0.66935,91691.0,91690.0,0.6814447]
[1764698673729,0.66935,91691.0,91690.0,0.3415547]
[1764698674122,0.66935,91691.0,91690.0,0.6645047]
[1764698678228,0.0109052,91689.0,91684.0,0.02910478]
[1764698678423,0.63221,91687.0,91686.0,0.65471572]
[1764698678928,0.63221,91687.0,91686.0,0.00027267]
[1764698679330,0.63221,91687.0,91686.0,0.00127267]
[1764698679632,0.0109051,91689.0,91683.0,0.00011017]
[1764698679633,0.63221,91684.0,91683.0,0.00011017]
[1764698682028,0.63221,91684.0,91683.0,0.00111017]
[1764698682629,0.643117,91675.0,91674.0,0.0109067]
[1764698682823,0.63221,91675.0,91674.0,0.6446967]
[1764698683232,0.00010049,91691.0,91674.0,0.6446967]
[1764698683233,0.643116,91681.0,91680.0,0.644696]
[1764698683836,0.643116,91681.0,91674.0,0.19991]
[1764698683837,0.0109064,91677.0,91676.0,0.0109065]
[1764698684043,0.63221,91675.0,91674.0,0.001]
[1764698684251,0.63221,91675.0,91674.0,0.63479]
[1764698685125,0.63221,91675.0,91674.0,0.63379]
[1764698685327,0.31828,91675.0,91674.0,0.8337]
[1764698685531,0.6431164,91677.0,91676.0,0.63379]
[1764698686639,0.6431164,91677.0,91676.0,0.63479]
[1764698687145,0.6431164,91677.0,91676.0,0.63579]
[1764698687544,0.63221,91677.0,91676.0,0.63579]
[1764698688135,0.63221,91677.0,91676.0,0.002]
[1764698688644,0.63221,91677.0,91651.0,0.31084]
[1764698688645,0.0109097,91652.0,91651.0,0.31084]
[1764698688844,0.6431198,91648.0,91647.0,0.0109099]